Cogmind - Beta 11 X9 @@@ ROGUE MODE // 2022.01.06 @ 13:38:47 // Winter2021/Sauler Player: Plexion Result: Self-destructed Performance ------------- Evolutions (0) 0 Regions Visited (4) 800 Robots Destroyed (20) 100 Value Destroyed (286) 286 Prototype IDs (27) 540 Alien Tech Used (0) 0 Bonus (300) 300 TOTAL SCORE: 2026 Bonus ------- Aligned with FarCom 300 Cogmind --------- Core Integrity 50/250 Matter 300/300 Energy 310/310 System Corruption 2% Temperature Cool (0) Movement Rolling (120) Ox2 Location -9/Mines Parts ------- > --- POWER (1) -------- Reinforced Fission Core > --- PROPULSION (2) --- Armored Wheel Armored Wheel > --- UTILITY (2) ------ Improved Heat Sink High-capacity Storage Unit > --- WEAPON (2) ------- Assault Rifle Plasma Cutter > --- INVENTORY (20) --- Improved Ion Engine Light Treads Light Treads Light Treads Light Treads Light Treads Armored Wheel Heat Sink Gravity Neutralizing Apparatus Experimental Targeting Computer Advanced Weapon Cycler Core Shielding System Purifier AS-neutralizer No. 17b Particle Cannon Particle Cannon Assault Rifle 8R-AWN's Boregun Grenade Launcher Rocket Launcher Peak State ------------ > --- POWER ------------ Reinforced Fission Core > --- PROPULSION ------- Armored Wheel Armored Wheel > --- UTILITY ---------- High-capacity Storage Unit System Purifier > --- WEAPON ----------- Particle Cannon 8R-AWN's Boregun > --- INVENTORY -------- Improved Ion Engine Advanced Myomer Leg Advanced Myomer Leg Armored Wheel Heat Sink Improved Heat Sink Gravity Neutralizing Apparatus Experimental Targeting Computer Advanced Weapon Cycler Core Shielding AS-neutralizer No. 17b Assault Rifle Assault Rifle Assault Rifle Grenade Launcher Rocket Launcher Plasma Cutter [Rating: 37] Favorites ----------- Power Improved Ion Engine Engine Improved Ion Engine Power Core Reinforced Fission Core Propulsion Armored Wheel Treads Light Treads Wheel Armored Wheel Utility High-capacity Storage Unit Device Improved Heat Sink Storage High-capacity Storage Unit Protection Core Shielding Weapon Particle Cannon Energy Gun Small Laser Energy Cannon Particle Cannon Ballistic Gun Assault Rifle Launcher Rocket Launcher Special Weapon Plasma Cutter Build | -11 -10 -10 -10 -9 ------- Run | Scr Mat Min Exi Min Slots Evolved . | . . . . . Power . | . . . . . Propulsion . | . . . . . Utility . | . . . . . Weapon . | . . . . . Parts Attached 49 | 8 12 2 27 . Power 4 | 1 2 . 1 . Engine 3 | 1 2 . . . Core 1 | . . . 1 . Reactor . | . . . . . Propulsion 13 | 4 4 . 5 . Treads 4 | 2 . . 2 . Leg . | . . . . . Wheel 9 | 2 4 . 3 . Hover . | . . . . . Flight . | . . . . . Utility 11 | 1 3 . 7 . Device 7 | . 2 . 5 . Storage 2 | 1 1 . . . Processor . | . . . . . Hackware . | . . . . . Protection 2 | . . . 2 . Artifact . | . . . . . Weapon 21 | 2 3 2 14 . Energy Gun 1 | 1 . . . . Energy Cannon 7 | . 3 1 3 . Ballistic Gun 7 | 1 . . 6 . Ballistic Cannon . | . . . . . Launcher 2 | . . 1 1 . Special Weapon 4 | . . . 4 . Impact Weapon . | . . . . . Slashing Weapon . | . . . . . Piercing Weapon . | . . . . . Special Melee Weapon . | . . . . . Unidentified Prototypes 4 | . . . 4 . Parts Lost 5 | . 1 . 4 . Power 1 | . 1 . . . Propulsion 3 | . . . 3 . Utility . | . . . . . Weapon 1 | . . . 1 . Highest Loss Streak 2 | . 1 . 2 . Average Slot Usage (%) 97 | . 94 100 97 . Engine 10 | . 14 14 7 . Core 3 | . . . 6 . Treads 1 | . . . 2 . Wheel 26 | . 28 28 25 . Device 7 | . 9 14 5 . Storage 14 | . 14 14 14 . Protection 4 | . . . 6 . Energy Gun 1 | . 4 . . . Energy Cannon 13 | . 16 27 8 . Ballistic Gun 7 | . 6 . 9 . Launcher 2 | . . . 3 . Special Weapon 3 | . . . 5 . Naked Turns . | . . . . . Heaviest Build 72 | 11 56 56 72 . Greatest Support 40 | 40 32 24 40 . Greatest Overweight (x) 5 | . 2 2 5 . Average Overweight (x) 1 | . 1 2 2 . Largest Inventory Capacity 20 | 8 20 20 20 . Average Capacity 19 | 6 19 20 20 . Most Carried 20 | 4 17 20 20 . Average Carried 15 | 2 8 18 18 . Final Capacity 20 | 8 20 20 20 20 Final Carried 20 | 4 17 20 20 20 Class Distribution -------------------- 100% | Mutant Dominant Class ---------------- Mutant | -10/Materials Mutant | -10/Mines Mutant | -10/Exiles Mutant | -9/Mines Resources | -11 -10 -10 -10 -9 ----------- Run | Scr Mat Min Exi Min Matter Collected 1290 | 268 205 8 809 . Remotely . | . . . . . Salvage Created 948 | . 426 17 505 . Parts 94 | . 24 5 65 . Haulers Intercepted 1 | . 1 . . . Recyclers Shooed . | . . . . . Parts Field Recycled . | . . . . . Retrieved Matter . | . . . . . Parts Self-Destructed . | . . . . . Prevented . | . . . . . Kills | -11 -10 -10 -10 -9 ------- Run | Scr Mat Min Exi Min Combat Hostiles Destroyed 14 | . 8 3 3 . Guns 9 | . 6 . 3 . Cannons 2 | . 2 . . . AOE 3 | . . 3 . . Classes Destroyed 8 | . 5 . 3 . Worker 1 | . 1 . . . Hauler 1 | . 1 . . . Recycler 1 | . 1 . . . Turret 1 | . . . 1 . Swarmer 6 | . 3 3 . . Grunt 5 | . 5 . . . Zionite 2 | . . . 2 . Assembled 2 | . . . 2 . Best Kill Streak 3 | . 1 3 3 . Combat Bots Only 3 | . 1 3 1 . Max Kills in Single Turn 1 | . 1 1 1 . Gunslinging . | . . . . . Exploded 1 | . . 1 . . Melee . | . . . . . Uniques/NPCs Destroyed 4 | . . . 4 . 8R-AWN (-10/Exiles) EX-HEX (-10/Exiles) EX-DEC (-10/Exiles) EX-BIN (-10/Exiles) Combat | -11 -10 -10 -10 -9 -------- Run | Scr Mat Min Exi Min Damage Taken 1409 | . 329 . 1080 . Core 200 | . 80 . 120 . Absorbed by Shields . | . . . . . Core Remaining (%) 100 | 100 . . . . Volleys Fired 138 | . 31 3 104 . Largest 2 | . 2 1 2 . Hottest 250 | . 136 33 250 . Shots Fired 241 | . 62 3 176 . Gun 170 | . 44 . 126 . Cannon 51 | . 18 . 33 . Launcher 3 | . . 3 . . Special 17 | . . . 17 . Kinetic 152 | . 26 . 126 . Thermal 86 | . 36 . 50 . Explosive 3 | . . 3 . . Electromagnetic . | . . . . . Robot Hit Streak 18 | . 10 1 18 . Robot Miss Streak 4 | . 3 1 4 . Penetration Max 1 | . . . 1 . Secondary Targets . | . . . . . Autonomous 28 | . . . 28 . Shots Hit Robots 158 | . 40 1 117 . Core Hits 56 | . 17 3 36 . Critical Kills 3 | . . . 3 . Critical Parts Destroyed 8 | . . . 8 . Critical Strikes 11 | . . . 11 . Destroy 11 | . . . 11 . Melee Attacks . | . . . . . Impact . | . . . . . Slashing . | . . . . . Piercing . | . . . . . Sneak Attacks . | . . . . . Combat Hostiles . | . . . . . Follow-up Attacks . | . . . . . Damage Inflicted 2834 | . 546 186 2102 . Guns 1923 | . 355 . 1568 . Cannons 570 | . 191 . 379 . Explosions 262 | . . 186 76 . Melee . | . . . . . Ramming . | . . . . . Kinetic 1783 | . 215 . 1568 . Thermal 865 | . 331 . 534 . Explosive 186 | . . 186 . . Electromagnetic . | . . . . . Impact . | . . . . . Slashing . | . . . . . Piercing . | . . . . . Highest Corruption 2 | . . . 2 . Average Corruption 2 | . . . 2 . Corruption Purged . | . . . . . Effects 6 | . . . 6 . Message Errors 2 | . . . 2 . Heat Flow Errors 2 | . . . 2 . Energy Discharges 1 | . . . 1 . Data Loss (minor) 1 | . . . 1 . Overload Shots . | . . . . . Overflow Damage . | . . . . . Projectiles . | . . . . . Explosions . | . . . . . Melee . | . . . . . Knockbacks . | . . . . . Impact . | . . . . . Kinetic . | . . . . . Secondary . | . . . . . Self-Inflicted Damage 30 | . . . 30 . Shots 4 | . . . 4 . Rammed . | . . . . . Targets Rammed . | . . . . . Kicked . | . . . . . Crushed . | . . . . . Highest Temperature 390 | . 72 . 390 . Average Temperature 99 | . 15 . 131 . Received Heat Transfer 171 | . 171 . . . Effects 2 | . . . 2 . Energy Bleed 1 | . . . 1 . Interference 1 | . . . 1 . Siege Activations . | . . . . . Robots Corrupted . | . . . . . Combat Hostiles . | . . . . . Parts Fried . | . . . . . Impact Corruptions . | . . . . . Robots Melted . | . . . . . Combat Hostiles . | . . . . . Parts Melted 9 | . 2 . 7 . Heat Transferred 1705 | . 695 . 1010 . Parts Sabotaged . | . . . . . Parts Stolen . | . . . . . Parts Stripped . | . . . . . Power Chain Reactions . | . . . . . Missiles Intercepted . | . . . . . Alert | -11 -10 -10 -10 -9 ------- Run | Scr Mat Min Exi Min Peak Influence 271 | . 271 134 . . Initial 64 | . . 64 . . Average 117 | . 134 101 . . Maximum Alert Level 1 | . 1 . . . Low Security (%) 79 | 100 68 100 . . Level 1 20 | . 31 . . . Level 2 . | . . . . . Level 3 . | . . . . . Level 4 . | . . . . . Level 5 . | . . . . . High Security . | . . . . . Max Security . | . . . . . Squads Dispatched 3 | . 3 . . . Investigation . | . . . . . Extermination . | . . . . . Reinforcement 3 | . 3 . . . Assault . | . . . . . Garrison . | . . . . . Intercept . | . . . . . Construction Impeded . | . . . . . Haulers Reinforced . | . . . . . Active Scanning Responses . | . . . . . Cargo Convoy Interrupts . | . . . . . Stealth | -11 -10 -10 -10 -9 --------- Run | Scr Mat Min Exi Min Distress Signals 4 | . 4 . . . Communications Jammed . | . . . . . Distress Signals . | . . . . . Times Spotted 49 | . 19 1 29 . Peak Tracking Total 10 | . 4 1 10 . Tactical Retreats 15 | . 2 . 13 . Traps | -11 -10 -10 -10 -9 ------- Run | Scr Mat Min Exi Min Traps Triggered 1 | . 1 . . . Indirectly . | . . . . . Trap Hack Attempts . | . . . . . Triggered . | . . . . . Disarmed . | . . . . . Reprogrammed . | . . . . . Reused . | . . . . . Traps Extracted . | . . . . . Installed . | . . . . . Triggered . | . . . . . Exploded 3 | . . . 3 . Machines | -11 -10 -10 -10 -9 ---------- Run | Scr Mat Min Exi Min Machines Disabled 13 | . 1 . 12 . Max in Single Turn 1 | . 1 . 1 . Machines Sabotaged . | . . . . . Garrisons Compromised . | . . . . . Overloaded Fab Kills . | . . . . . Hacking | -11 -10 -10 -10 -9 --------- Run | Scr Mat Min Exi Min Machines Accessed 5 | . 3 . 2 . Terminals 3 | . 3 . . . Fabricators . | . . . . . Repair Stations . | . . . . . Recycling Units . | . . . . . Scanalyzers . | . . . . . Garrison Access . | . . . . . Total Hacks 10 | . 8 . 2 . Successful 7 | . 5 . 2 . Failed 3 | . 3 . . . Catastrophic 1 | . 1 . . . Database Lockouts . | . . . . . Manual 6 | . 5 . 1 . Terminals 8 | . 8 . . . Fabricators . | . . . . . Repair Stations . | . . . . . Recycling Units . | . . . . . Scanalyzers . | . . . . . Garrison Access . | . . . . . Terminal Hacks 5 | . 3 . 2 . Record 1 | . . . 1 . Robot Analysis 1 | . 1 . . . Locate Traps 1 | . 1 . . . Zone Layout 1 | . 1 . . . EX-Prototype ID Bank 1 | . . . 1 . Fabricator Hacks . | . . . . . Repair Station Hacks . | . . . . . Recycling Unit Hacks . | . . . . . Scanalyzer . | . . . . . Garrison Access Hacks . | . . . . . Unauthorized Hacks 2 | . 2 . . . Terminals 2 | . 2 . . . Track 2 | . 2 . . . Fabricators . | . . . . . Repair Stations . | . . . . . Recycling Units . | . . . . . Scanalyzers . | . . . . . Garrison Access . | . . . . . Data Cores Recovered . | . . . . . Used . | . . . . . Hacking Detections 2 | . 2 . . . Full Trace Events . | . . . . . Feedback Events . | . . . . . Feedback Blocked . | . . . . . Robot Schematics Acquired . | . . . . . Robots Built . | . . . . . Authchips . | . . . . . Time . | . . . . . Total Robot Build Rating . | . . . . . Part Schematics Acquired . | . . . . . Parts Built . | . . . . . Authchips . | . . . . . Time . | . . . . . Total Part Build Rating . | . . . . . Parts Repaired . | . . . . . Time . | . . . . . Parts Recycled . | . . . . . Recycled Matter . | . . . . . Retrieved Matter . | . . . . . Retrieved Components . | . . . . . Parts Scanalyzed . | . . . . . Part Schematics Acquired . | . . . . . Parts Damaged . | . . . . . Bothacking | -11 -10 -10 -10 -9 ------------ Run | Scr Mat Min Exi Min Used RIF Installer . | . . . . . Robots Hacked . | . . . . . Non-combat . | . . . . . Combat . | . . . . . Robot Hacks Applied . | . . . . . Relay Couplers Released . | . . . . . Fabnet Peak Effective % . | . . . . . Robots Rewired . | . . . . . Allies Hacked . | . . . . . Hacks Repelled . | . . . . . Allies | -11 -10 -10 -10 -9 -------- Run | Scr Mat Min Exi Min Total Allies . | . . . . . Largest Group . | . . . . . Highest-Rated Group . | . . . . . Highest-Rated Ally . | . . . . . Total Orders . | . . . . . Ally Attacks . | . . . . . Total Damage . | . . . . . Kills . | . . . . . Allies Corrupted . | . . . . . Allies Melted . | . . . . . Intel | -11 -10 -10 -10 -9 ------- Run | Scr Mat Min Exi Min Robot Analysis Total 1 | . 1 . . . Derelict Logs Recovered 2 | . . 2 . . Drone Launches . | . . . . . Drone Recoveries . | . . . . . Exploration | -11 -10 -10 -10 -9 ------------- Run | Scr Mat Min Exi Min Turns Passed 2797 | 72 773 340 1612 . Spaces Moved 1850 | 43 541 274 992 . Core 5 | 5 . . . . Treads 41 | 27 . . 14 . Legs . | . . . . . Wheels 1804 | 11 541 274 978 . Hover . | . . . . . Flight . | . . . . . Fastest Speed 50 | 50 100 120 120 . Average Speed 120 | 131 115 120 122 . Slowest Speed 240 | 160 120 120 240 . Overloaded Moves . | . . . . . Propulsion Burnouts . | . . . . . Robots Hopped . | . . . . . Cave-ins Triggered . | . . . . . Exploration Rate (%) 45 | 3 88 45 88 4 Regions Visited 4 Branch Regions 3 Pre-discovered Areas 2 | . . 1 1 . Known Exits Taken . | . . . . . Unknown Exits Taken 4 | 1 1 1 1 . Scrap Searched . | . . . . . Spaces Dug . | . . . . . Terrain Destroyed 38 | . . 17 21 . Melee . | . . . . . Projectile 16 | . . . 16 . AOE 21 | . . 17 4 . Terrain Rammed . | . . . . . Walls Destroyed . | . . . . . Machines Disabled . | . . . . . Actions | -11 -10 -10 -10 -9 --------- Run | Scr Mat Min Exi Min Total 2197 | 54 629 281 1233 . Wait 72 | . 19 . 53 . Move 1846 | 42 540 273 991 . Hop . | . . . . . Pick Up 45 | 4 14 3 24 . Fast Attach 15 | 6 4 . 5 . Attach 10 | . 1 . 9 . Detach 12 | . 3 . 9 . Swap 24 | 2 7 2 13 . Drop 35 | . 10 . 25 . Fire 138 | . 31 3 104 . Melee . | . . . . . Ram . | . . . . . Kick . | . . . . . Crush . | . . . . . Escape Stasis . | . . . . . Rewire . | . . . . . Trap . | . . . . . Miscellaneous . | . . . . . Route ------- -11/Scrapyard -10/Materials (discovered 3 exits: [*Mat x2] / [*Min]) -10/Mines (discovered 2 exits: [*Mat] / *Exi) -10/Exiles -9/Mines History --------- Turn | Location | Event 12 | -11/Scrapyard | Discovered new exit (range 16) 73 | -11/Scrapyard | Entered Materials 305 | -10/Materials | Build established: Mutant 513 | -10/Materials | Discovered new exit (range 13) 662 | -10/Materials | Discovered new exit (range 10) 758 | -10/Materials | Discovered new exit (range 7) 846 | -10/Materials | Entered Mines 918 | -10/Mines | Received a Rocket Launcher from a helpful Derelict 941 | -10/Mines | Learned Materials stockpile data 973 | -10/Mines | Discovered new exit (range 14) 1181 | -10/Mines | Deemed a non-threat by the Exiles lab entrance 1181 | -10/Mines | Discovered new exit (range 5) 1186 | -10/Mines | Entered Exiles 1215 | -10/Exiles | Met 8R-AWN 1236 | -10/Exiles | Met EX-HEX 1292 | -10/Exiles | Met EX-DEC 1357 | -10/Exiles | Learned location of Zion (-7) 1380 | -10/Exiles | Met EX-BIN 1397 | -10/Exiles | Aligned with FarCom system 1398 | -10/Exiles | Given EX-Vault access code 1428 | -10/Exiles | Opened EX-Vault 1437 | -10/Exiles | Found Firepult 1442 | -10/Exiles | Found AWS/Gauss 1472 | -10/Exiles | Warned to stay clear of 0b10 Research branches 1829 | -10/Exiles | Attacked by the Exiles 1946 | -10/Exiles | Core integrity fell below 50% 2058 | -10/Exiles | Destroyed 8R-AWN 2066 | -10/Exiles | Found Prototype Ballistic Gun 2066 | -10/Exiles | Identified 8R-AWN's Boregun 2071 | -10/Exiles | Found Prototype Device 2071 | -10/Exiles | Identified AS-neutralizer No. 17b 2078 | -10/Exiles | Found Prototype Processor 2277 | -10/Exiles | Destroyed EX-HEX 2356 | -10/Exiles | Destroyed EX-DEC 2389 | -10/Exiles | Destroyed EX-BIN 2406 | -10/Exiles | Found Prototype Device 2406 | -10/Exiles | Identified System Purifier 2663 | -10/Exiles | Discovered new exit (range 12) 2798 | -10/Exiles | Entered Mines 2798 | -9/Mines | Self-destructed Last Messages --------------- 02583_ Acquired Lgt. Treads. 02591_ Dropped Assault Rifle. 02593_ Acquired Lgt. Treads. 02597_ Dropped Prototype Leg. 02599_ System corrupted: Energy discharge (-108). 02600_ Acquired Lgt. Treads. 02603_ Acquired Assault Rifle. 02652_ Dropped Particle Cannon. 02652_ Acquired Particle Cannon. 02655_ Dropped Assault Rifle. 02655_ Acquired Particle Cannon. 02663_ EXIT=FOUND 02682_ 5BI C<